fUST/lending_fUST_20240220
["ID","MTS","AMOUNT","RATE_DAILY","PERIOD"]
[314469171,1708369857639,-500.0,0.00028493,2]
[314469172,1708369857648,-500.0,0.00028493,2]
[314469173,1708369857657,-500.0,0.00028493,2]
[314469174,1708369857667,-500.0,0.00028493,2]
[314469175,1708369857676,-500.0,0.00028493,2]
[314469176,1708369857686,-3786.6,0.00028493,2]
[314469177,1708369857697,-500.0,0.00028493,2]
[314469178,1708369857706,-500.0,0.00028493,2]
[314469179,1708369857715,-500.0,0.00028493,2]
[314469180,1708369857724,-500.0,0.00028493,15]
[314469181,1708369857734,-500.0,0.00028493,2]
[314469182,1708369857743,-500.0,0.00028493,2]
[314469184,1708369857752,-750.74,0.00028493,2]
[314469186,1708369857761,-500.0,0.00028493,2]
[314469188,1708369857770,-500.0,0.00028493,2]
[314469190,1708369857780,-500.0,0.00028493,2]
[314469192,1708369857789,-500.0,0.00028493,2]
[314469194,1708369857798,-500.0,0.00028493,2]
[314469196,1708369857807,-500.0,0.00028493,2]
[314469198,1708369857816,-500.0,0.00028493,2]
[314469200,1708369857825,-500.0,0.00028493,2]
[314469202,1708369857834,-500.0,0.00028493,2]
[314469204,1708369857843,-500.0,0.00028493,2]
[314469206,1708369857852,-500.0,0.00028493,2]
[314469208,1708369857862,-500.0,0.00028493,2]
[314469210,1708369857871,-767.56,0.00028493,2]
[314469212,1708369857880,-500.0,0.00028493,2]
[314469214,1708369857889,-500.0,0.00028493,2]
[314469216,1708369857899,-500.0,0.00028493,2]
[314469218,1708369857908,-500.0,0.00028493,2]
[314469220,1708369857917,-500.0,0.00028493,2]
[314469222,1708369857926,-500.0,0.00028493,2]
[314469224,1708369857936,-552.44,0.00028493,2]
[314469226,1708369857945,-500.0,0.00028493,2]
[314469228,1708369857954,-1134.99,0.00028493,2]
[314469230,1708369857964,-157.5654042,0.00028493,2]
[314469232,1708369857973,-198.950259,0.00028493,2]
[314469234,1708369857983,-198.950259,0.00028493,2]
[314469237,1708369857992,-500.0,0.00028493,2]
[314469238,1708369858001,-500.0,0.00028493,2]
[314469240,1708369858011,-500.0,0.00028493,2]
[314469242,1708369858020,-3665.42,0.00028493,2]
[314469244,1708369858030,-500.0,0.00028493,2]
[314469246,1708369858039,-500.0,0.00028493,2]
[314469248,1708369858048,-507.88172486,0.00028493,2]
[314469250,1708369858057,-500.0,0.00028493,2]
[314469252,1708369858067,-500.0,0.00028493,2]
[314469254,1708369858076,-151.0,0.00028493,2]
[314469257,1708369858086,-699.85,0.00028493,2]
[314469259,1708369858096,-534.2,0.00028493,2]
[314469261,1708369858105,-500.0,0.00028493,2]
[314469263,1708369858114,-500.0,0.00028493,2]
[314469265,1708369858124,-1698.91,0.00028493,2]
[314469267,1708369858133,-500.0,0.00028493,2]
[314469269,1708369858142,-500.0,0.00028493,2]
[314469271,1708369858151,-500.0,0.00028493,2]
[314469273,1708369858161,-500.0,0.00028493,2]
[314469274,1708369858175,-500.0,0.00028493,2]
[314469276,1708369858185,-500.0,0.00028493,2]
[314469278,1708369858195,-4834.44,0.00028493,2]
[314469281,1708369858204,-500.0,0.00028493,2]
[314469283,1708369858215,-500.0,0.00028493,2]
[314469285,1708369858224,-575.99,0.00028493,2]
[314469287,1708369858234,-616.65,0.00028493,2]
[314469289,1708369858244,-2092.72,0.00028493,2]
[314469290,1708369858254,-500.0,0.00028493,2]
[314469293,1708369858264,-3615.9,0.00028493,2]
[314469294,1708369858274,-502.61961721,0.00028493,2]
[314469297,1708369858284,-500.0,0.00028493,2]
[314469298,1708369858293,-500.0,0.00028493,2]
[314469300,1708369858303,-500.0,0.00028493,2]
[314469303,1708369858314,-500.0,0.00028493,2]
[314469305,1708369858324,-500.0,0.00028493,2]
[314469307,1708369858335,-500.0,0.00028493,2]
[314469309,1708369858344,-1009.31,0.00028493,2]
[314469311,1708369858353,-3167.92,0.00028493,2]
[314469312,1708369858362,-219.73623338,0.00028493,2]
[314469315,1708369858374,-500.0,0.00028493,2]
[314469316,1708369858384,-500.0,0.00028493,2]
[314469319,1708369858394,-1573.88,0.00028493,2]
[314469321,1708369858403,-721.49,0.00028493,2]
[314469323,1708369858414,-500.0,0.00028493,2]
[314469325,1708369858424,-2320.89,0.00028493,2]
[314469326,1708369858434,-392.5844465,0.00028493,2]
[314469329,1708369858443,-2820.64,0.00028493,2]
[314469330,1708369858453,-500.0,0.00028493,2]
[314469332,1708369858463,-500.0,0.00028493,2]
[314469335,1708369858472,-21952.34,0.00028493,2]
[314469337,1708369858481,-1132.78,0.00028493,2]
[314469339,1708369858490,-1000.0,0.00028493,2]
[314469340,1708369858503,-511.2002696,0.00028493,2]
[314469342,1708369858513,-564.87891502,0.00028493,2]
[314469344,1708369858522,-500.0,0.00028493,2]
[314469347,1708369858532,-648.49760759,0.00028493,2]
[314469349,1708369858541,-6294.23189366,0.00028493,2]
[314469399,1708369859033,-0.99141913,0.00017223,3]
[314469401,1708369859045,-207.91858087,0.00017223,3]
[314469403,1708369859054,-297.98975646,0.00027397,2]
[314469948,1708371033136,-404.12514188,0.00024819,2]
[314469950,1708371033147,-166.75633,0.0002482,2]
[314469952,1708371033157,-155.10547172,0.00025,2]
[314469954,1708371033167,-7988.98682546,0.00026099,2]
[314469956,1708371033177,-1987.48680191,0.000261,2]
[314469958,1708371033187,-16563.94601822,0.000261,2]
[314469961,1708371033199,-1259.4069978,0.000261,2]
[314470298,1708371041070,-17997.82537675,0.000261,2]
[314470299,1708371041079,-6716.47094864,0.000261,2]
[314470300,1708371041089,-1624.94455665,0.000261,2]
[314470426,1708371042947,-1974.9002003,0.000261,2]
[314470428,1708371042957,-171.87950636,0.00026156,2]
[314470430,1708371042966,-505.62991654,0.00026679,3]
[314470432,1708371042975,-530.01378479,0.00026679,3]
[314470434,1708371042984,-1526.96357249,0.000269,2]
[314470436,1708371042993,-5894.93,0.00026969,3]
[314470438,1708371043003,-10186.44,0.00026989,3]
[314470440,1708371043012,-8497.68,0.0002699,3]
[314470443,1708371043022,-500.0,0.00026999,2]
[314470445,1708371043031,-500.0,0.00026999,2]
[314470448,1708371043041,-500.0,0.00026999,2]
[314470450,1708371043049,-500.0,0.00026999,2]
[314470452,1708371043058,-500.0,0.00026999,2]
[314470454,1708371043068,-154.28555815,0.00026999,2]
[314470456,1708371043077,-500.0,0.00026999,2]
[314470458,1708371043086,-493.53616119,0.00026999,2]
[314470460,1708371043095,-644.65894193,0.00026999,2]
[314470462,1708371043104,-500.0,0.00026999,2]
[314470464,1708371043112,-500.0,0.00026999,2]
[314470466,1708371043121,-400.0,0.00026999,2]
[314470468,1708371043130,-500.0,0.00026999,2]
[314470470,1708371043139,-500.0,0.00026999,2]
[314470472,1708371043148,-500.0,0.00026999,2]
[314470474,1708371043157,-500.0,0.00026999,2]
[314470476,1708371043166,-500.0,0.00026999,2]
[314470478,1708371043175,-500.0,0.00026999,2]
[314470480,1708371043184,-500.0,0.00026999,2]
[314470482,1708371043193,-500.0,0.00026999,2]
[314470484,1708371043202,-500.0,0.00026999,2]
[314470486,1708371043212,-500.0,0.00026999,2]
[314470488,1708371043220,-500.0,0.00026999,2]
[314470490,1708371043230,-379.61994317,0.00026999,2]
[314470492,1708371043239,-500.0,0.00026999,2]
[314470494,1708371043249,-500.0,0.00026999,2]
[314470497,1708371043259,-500.0,0.00026999,2]
[314470499,1708371043269,-500.0,0.00026999,2]
[314470501,1708371043279,-500.0,0.00026999,2]
[314470503,1708371043288,-500.0,0.00026999,2]
[314470505,1708371043297,-204.37455257,0.00027,3]
[314470507,1708371043307,-16234.4137441,0.00027,2]
[314470509,1708371043316,-289357.34010295,0.00027,2]
[314470772,1708371045928,-155.11478494,0.00025,2]
[314470774,1708371045937,-967.40092811,0.00027,2]
[314474213,1708372231999,-404.12514188,0.00024999,2]
[314474215,1708372232009,-155.11478494,0.00025,2]
[314474217,1708372232020,-683.27704983,0.000261,2]
[314474219,1708372232029,-4681.49873703,0.000261,2]
[314474221,1708372232038,-151.68897496,0.00026679,3]
[314474224,1708372232049,-559.13001936,0.00026679,3]
[314474226,1708372232062,-151.6394959,0.00026865,2]
[314474229,1708372232071,-160.88802508,0.000269,2]
[314474232,1708372232081,-1374.26721525,0.000269,2]
[314474235,1708372232090,-3768.65,0.0002699,3]
[314474237,1708372232100,-500.0,0.00026999,2]
[314474239,1708372232111,-500.0,0.00026999,2]
[314474240,1708372232120,-500.0,0.00026999,2]
[314474243,1708372232130,-500.0,0.00026999,2]
[314474245,1708372232141,-500.0,0.00026999,2]
[314474247,1708372232151,-500.0,0.00026999,2]
[314474249,1708372232160,-500.0,0.00026999,2]
[314474251,1708372232169,-500.0,0.00026999,2]
[314474253,1708372232179,-500.0,0.00026999,2]
[314474255,1708372232189,-500.0,0.00026999,2]
[314474257,1708372232198,-67898.16490383,0.00027,2]
[314474259,1708372232215,-48305.37289041,0.00027,2]
[314474406,1708372238038,-625.85808534,0.00027,2]
[314474412,1708372238094,-1746.27445069,0.00027,2]
[314474415,1708372238106,-1228.28652,0.00027,2]
[314474465,1708372241156,-2180.94872852,0.00027,2]
[314474466,1708372241168,-1035.97810378,0.00027,2]
[314474470,1708372241211,-15980.13662669,0.00027,2]
[314474507,1708372243128,-176099.47144412,0.00027,2]
[314474671,1708373432244,-245.9464338,0.00024999,2]
[314474673,1708373432254,-250.77892606,0.00025,2]
[314474675,1708373432264,-1678.83604671,0.00025527,2]
[314474680,1708373432298,-146.72535989,0.00025527,2]
[314474682,1708373432308,-4752.18519208,0.00025692,2]
[314474709,1708373438469,-13528.66468272,0.00025692,2]
[314474711,1708373438479,-8844.24258475,0.000261,2]
[314474713,1708373438490,-5000.0,0.000261,2]
[314474715,1708373438499,-245.10152278,0.000261,2]
[314474717,1708373438508,-5000.0,0.000261,2]
[314474719,1708373438518,-381.00483569,0.000261,2]
[314474721,1708373438528,-342.06046732,0.000261,2]
[314474723,1708373438537,-1000.0,0.00026679,3]
[314474725,1708373438547,-159.00413544,0.00026679,3]
[314474727,1708373438556,-159.66979763,0.00026679,3]
[314474729,1708373438565,-11104.45806236,0.000268,5]
[314475332,1708374213584,1000.0,0.000172,2]
[314475333,1708374282249,7750.0,0.000172,2]
[314475334,1708374320743,-155.12565178,0.00017199,2]
[314475335,1708374320789,-1587.87434822,0.000172,2]
[314475340,1708374461498,4284.08,0.00033,120]
[314475436,1708374632511,-1236.84049368,0.00024598,2]
[314475438,1708374632520,-267.6855452,0.00024598,2]
[314475440,1708374632530,-7681.69,0.00024687,3]
[314475442,1708374632539,-309.78137612,0.00024695,2]
[314475444,1708374632550,-500.0,0.00024696,2]
[314475446,1708374632560,-500.0,0.00024696,2]
[314475448,1708374632569,-500.0,0.00024696,2]
[314475451,1708374632579,-500.0,0.00024696,2]
[314475454,1708374632589,-500.0,0.00024696,2]
[314475456,1708374632598,-500.0,0.00024696,2]
[314475458,1708374632609,-500.0,0.00024696,2]
[314475460,1708374632618,-500.0,0.00024696,2]
[314475462,1708374632628,-500.0,0.00024696,2]
[314475464,1708374632637,-500.0,0.00024696,2]
[314475466,1708374632648,-500.0,0.00024696,2]
[314475468,1708374632658,-500.0,0.00024696,2]
[314475470,1708374632668,-301.7976771,0.00024696,2]
[314475472,1708374632677,-500.0,0.00024696,2]
[314475474,1708374632686,-500.0,0.00024696,2]
[314475476,1708374632696,-500.0,0.00024696,2]
[314475478,1708374632705,-500.0,0.00024696,2]
[314475480,1708374632715,-500.0,0.00024696,2]
[314475482,1708374632725,-500.0,0.00024696,2]
[314475484,1708374632734,-500.0,0.00024696,2]
[314475486,1708374632743,-31821.31000539,0.00024697,2]
[314475492,1708374638433,-5887.89935436,0.00024697,2]
[314475493,1708374638486,-640.30302664,0.00024697,2]
[314475633,1708374641655,-3090.40678966,0.00024697,2]
[314475653,1708374643438,-2317.24131864,0.00024697,2]
[314475656,1708374646538,-5614.32162214,0.00024687,3]
[314475657,1708374646550,-664.16267637,0.00024687,3]
[314475658,1708374947348,249.332807,0.00027397,120]
[314475659,1708374947542,249.332807,0.00031963,120]
[314475660,1708375445636,166.221871,0.00027397,120]
[314475661,1708375450704,4294.74,0.00033,120]
[314475716,1708375832651,-155.12254681,0.00022596,2]
[314475719,1708375832661,-264.63175608,0.00022597,2]
[314475721,1708375832671,-208.99246632,0.00024597,2]
[314475724,1708375832681,-7988.98682546,0.00024597,2]
[314475727,1708375832690,-1113.15644433,0.00024598,2]
[314475728,1708375832699,-3323.35,0.00024687,3]
[314475729,1708375832708,-500.0,0.00024696,2]
[314475730,1708375832718,-500.0,0.00024696,2]
[314475731,1708375832727,-500.0,0.00024696,2]
[314475732,1708375832736,-500.0,0.00024696,2]
[314475733,1708375832745,-500.0,0.00024696,2]
[314475734,1708375832753,-500.0,0.00024696,2]
[314475735,1708375832762,-500.0,0.00024696,2]
[314475736,1708375832771,-500.0,0.00024696,2]
[314475737,1708375832780,-500.0,0.00024696,2]
[314475738,1708375832789,-500.0,0.00024696,2]
[314475739,1708375832798,-5013.15466603,0.00024697,2]
[314475750,1708375838569,-154.81637835,0.00024574,2]
[314475751,1708375838580,-140.2276153,0.00024687,3]
[314476009,1708375841722,-5048.6323847,0.00024687,3]
[314476011,1708375841732,-2584.50746728,0.00024697,2]
[314476014,1708375841744,-129819.25428328,0.00024697,2]
[314476016,1708375841756,-3362.15107414,0.00024697,2]
[314476018,1708375841768,-15867.07233088,0.00024697,2]
[314476218,1708375843651,-3303.5839199,0.00024697,2]
[314476511,1708375846626,-1508.08696117,0.00024697,2]
[314481791,1708375906504,166.221871,0.00027397,120]
[314492121,1708376439132,166.221871,0.00027397,120]
[314492206,1708377031839,-155.12565178,0.00020999,2]
[314492207,1708377031850,-2379.80264351,0.00021,2]
[314492208,1708377031860,-176.42117072,0.00022597,2]
[314492209,1708377031870,-267.6855452,0.00024598,2]
[314492210,1708377031879,-1209.31836414,0.00024598,2]
[314492211,1708377031890,-3839.8,0.00024687,3]
[314492212,1708377031900,-500.0,0.00024696,2]
[314492213,1708377031910,-500.0,0.00024696,2]
[314492214,1708377031919,-500.0,0.00024696,2]
[314492215,1708377031929,-500.0,0.00024696,2]
[314492216,1708377031939,-500.0,0.00024696,2]
[314492217,1708377031949,-500.0,0.00024696,2]
[314492218,1708377031959,-500.0,0.00024696,2]
[314492219,1708377031968,-500.0,0.00024696,2]
[314492220,1708377031978,-481.14578002,0.00024696,2]
[314492221,1708377031987,-3212.76514712,0.00024697,2]
[314492253,1708377037846,-795.25274607,0.00024687,3]
[314492277,1708377038066,-6116.40725393,0.00024687,3]
[314492279,1708377038077,-38581.35912906,0.00024697,2]
[314492282,1708377038096,-2167.16226159,0.00024697,2]
[314492569,1708377040941,-2123.916742,0.00024697,2]
[314492572,1708377040954,-1887.35204478,0.00024697,2]
[314492578,1708377041000,-9916.62697593,0.00024697,2]
[314493063,1708377045841,-500.0,0.00024697,2]
[314493066,1708377045854,-465.89074487,0.00024697,2]
[314504458,1708377716298,-20798.17952975,0.00029872,60]
[314504459,1708377716321,-50000.0,0.00029872,60]
[314504460,1708377716345,-50000.0,0.00029872,60]
[314504461,1708377716368,-50000.0,0.00029872,60]
[314504462,1708377716391,-170.51527951,0.00029872,120]
[314504463,1708377716413,-1613860.26791906,0.00029872,60]
[314504464,1708377716435,-2676.0,0.00029872,60]
[314504465,1708377716473,-7376.86415403,0.00029872,60]
[314504466,1708377716499,-6320.13959668,0.00029872,120]
[314504467,1708377716523,-699.25787103,0.00029872,120]
[314504468,1708377716548,-2615.168945,0.00029872,120]
[314504469,1708377716572,-1915.01495002,0.00029872,120]
[314504470,1708377716596,-500.0,0.00029872,120]
[314504471,1708377716622,-383.43912746,0.00029872,120]
[314504472,1708377716649,-471.11363357,0.00029872,120]
[314504473,1708377716673,-968.96751337,0.00029872,120]
[314504474,1708377716947,-202.63083256,0.00029872,120]
[314504475,1708377716972,-1360.07958985,0.00029872,120]
[314504476,1708377716995,-3654.03195471,0.00029872,120]
[314504477,1708377717018,-1151.56751818,0.00029872,120]
[314504478,1708377717041,-1219.00773779,0.00029872,120]
[314504479,1708377717063,-2450.31986448,0.00029872,120]
[314504480,1708377717085,-498.52529461,0.00029872,120]
[314504481,1708377717107,-5186.81693251,0.00029872,120]
[314504482,1708377717131,-201.752343,0.00029872,120]
[314504483,1708377924923,-230.0,0.0003079,35]
[314504484,1708377924947,-2828.0,0.0003079,35]
[314504485,1708377924970,-230.0,0.0003079,35]
[314504486,1708377924994,-2828.0,0.0003079,35]
[314504487,1708377925017,-230.0,0.000308,35]
[314504488,1708377925041,-2828.0,0.000308,35]
[314504489,1708377925064,-230.0,0.000308,35]
[314504490,1708377925087,-2828.0,0.000308,35]
[314504491,1708377925109,-230.0,0.000308,35]
[314504492,1708377925132,-238.19,0.000308,35]
[314504493,1708377925155,-2828.0,0.000308,35]
[314504494,1708377925179,-2833.3,0.000308,35]
[314504495,1708377925202,-230.0,0.0003081,35]
[314504496,1708377925224,-2828.0,0.0003081,35]
[314504497,1708377925248,-230.0,0.0003081,35]
[314504498,1708377925272,-2828.0,0.0003081,35]
[314504499,1708377925296,-230.0,0.0003081,35]
[314504500,1708377925320,-230.0,0.0003081,35]
[314504501,1708377925343,-2828.0,0.0003081,35]
[314504502,1708377925365,-2828.0,0.0003081,35]
[314504503,1708377925388,-6601.0,0.0003082,35]
[314504504,1708377925411,-150.5,0.0003082,35]
[314504505,1708377925434,-7380.0,0.0003082,35]
[314504506,1708377925457,-286.75,0.0003082,35]
[314504507,1708377925480,-7380.0,0.0003082,35]
[314504508,1708377925503,-6601.0,0.0003082,35]
[314504509,1708377925526,-150.5,0.0003082,35]
[314504510,1708377925547,-150.5,0.0003082,35]
[314504511,1708377925570,-215.97,0.0003082,35]
[314504512,1708377925593,-6601.0,0.0003083,35]
[314504513,1708377925615,-150.5,0.0003083,35]
[314504514,1708377925640,-7380.0,0.0003083,35]
[314504515,1708377925662,-150.5,0.0003083,35]
[314504516,1708377925687,-7380.0,0.0003083,35]
[314504517,1708377925711,-6601.0,0.0003083,35]
[314504518,1708377925734,-150.5,0.0003083,35]
[314504519,1708377925757,-150.5,0.0003083,35]
[314504520,1708377925782,-7380.0,0.0003083,35]
[314504521,1708377925805,-6601.0,0.0003083,35]
[314504522,1708377925827,-150.5,0.0003083,35]
[314504523,1708377925850,-7387.82,0.0003083,35]
[314504524,1708377925873,-6610.08,0.0003083,35]
[314504525,1708377925896,-150.5,0.0003084,35]
[314504526,1708377925918,-6601.0,0.0003084,35]
[314504527,1708377925941,-7380.0,0.0003084,35]
[314504528,1708377925964,-150.5,0.0003084,35]
[314504529,1708377925987,-7380.0,0.0003084,35]
[314504530,1708377926010,-150.5,0.0003084,35]
[314504531,1708377926033,-6601.0,0.0003084,35]
[314504532,1708377926056,-150.5,0.0003084,35]
[314504533,1708377926078,-7380.0,0.0003084,35]
[314504534,1708377926101,-6601.0,0.0003084,35]
[314504535,1708377926123,-150.5,0.0003084,35]
[314504536,1708377926146,-300.71,0.0003084,35]
[314504537,1708377926169,-7380.0,0.0003084,35]
[314504538,1708377926192,-6601.0,0.0003084,35]
[314504539,1708377926221,-158.409756,0.00030959,35]
[314504540,1708377926242,-158.409756,0.00030959,44]
[314504541,1708377926264,-158.409756,0.00030959,52]
[314504542,1708377926287,-158.409756,0.00030959,60]
[314504543,1708377926312,-158.409756,0.00030959,69]
[314504544,1708377926334,-158.409756,0.00030959,77]
[314504545,1708377926358,-158.409756,0.00030959,86]
[314504546,1708377926381,-158.409756,0.00030959,94]
[314504547,1708377926402,-158.409756,0.00030959,103]
[314504548,1708377926427,-158.409756,0.00030959,111]
[314504549,1708377926449,-158.409756,0.00030959,119]
[314504550,1708377926514,-1000.0,0.00033,33]
[314504551,1708377926718,-1445.16307307,0.00034898,120]
[314504552,1708377926743,-5003.67473696,0.00035,33]
[314504553,1708377926766,-1000.0,0.00035,35]
[314504554,1708377926789,-1046.0,0.00035,120]
[314504555,1708377926821,-1000.0,0.00037,37]
[314504556,1708377926846,-154644.61091883,0.00037589,60]
[314504557,1708377926870,-500000.0,0.00038,33]
[314504689,1708378233961,-155.12409928,0.00024596,2]
[314504690,1708378233971,-1088.38652769,0.00024597,2]
[314504691,1708378233981,-6621.39,0.00024687,3]
[314504692,1708378233991,-58499.26645002,0.00024697,2]
[314504746,1708378238069,-2690.72132191,0.00024687,3]
[314505066,1708378241214,-2827.10867809,0.00024687,3]
[314505068,1708378241223,-77231.81314122,0.00024697,2]
[314505649,1708378247002,-155.12409928,0.00024696,2]
[314505651,1708378247013,-434.97590072,0.00024697,2]
[314510373,1708379432182,-155.12409928,0.00023354,2]
[314510374,1708379432193,-8494.36223104,0.00023355,2]
[314510518,1708379442813,-2001.6017015,0.00023355,2]
[314510521,1708379442824,-14404.03606746,0.00023355,2]
[314510523,1708379442833,-243.9253324,0.0002361,2]
[314510525,1708379442843,-1648.1960303,0.00023638,2]
[314510527,1708379442852,-4681.52,0.00024587,3]
[314510529,1708379442866,-3901.27,0.00024587,3]
[314510531,1708379442880,-251.0,0.00024587,3]
[314510533,1708379442890,-26482.82731604,0.00024597,2]
[314510535,1708379442901,-5178.06867792,0.00024597,2]
[314510614,1708379447221,-591.0,0.00024587,3]
[314510615,1708379447234,-348.73073188,0.00024587,3]
[314510642,1708380190678,155.01085076,0.00033,120]
[314510753,1708380632407,-155.13807288,0.00022309,2]
[314510755,1708380632418,-208.99246632,0.0002231,2]
[314510757,1708380632436,-0.06029463,0.00022314,2]
[314510805,1708380638424,-1154.89993747,0.00022314,2]
[314510806,1708380638434,-482.5091811,0.00022757,2]
[314510807,1708380638442,-253.111754,0.00022934,2]
[314510808,1708380638449,-300.0,0.00023073,2]
[314510809,1708380638455,-24900.0,0.00023074,2]
[314510810,1708380638464,-182.95614973,0.00023161,2]
[314510811,1708380638472,-163.55377005,0.00023261,2]
[314510812,1708380638479,-171.4412513,0.00023264,2]
[314510813,1708380638487,-169.725629,0.00023361,2]
[314510815,1708380638498,-7830.43731,0.00024,2]
[314510818,1708380638506,-1685.03,0.00024477,3]
[314510820,1708380638516,-1457.6774883,0.00024477,3]
[314510822,1708380638527,-1440.4925117,0.00024477,3]
[314510824,1708380638537,-2415.14,0.00024477,3]
[314510826,1708380638547,-500.0,0.00024486,2]
[314510827,1708380638557,-422.42196412,0.00024486,2]
[314510828,1708380638567,-186.31351592,0.00024487,2]
[314510829,1708380638577,-19878.42696291,0.00024487,2]
[314510830,1708380638590,-4819.13296242,0.00024487,2]
[314510831,1708380638602,-6434.63447827,0.00024487,2]
[314510832,1708380638613,-9680.31838164,0.00024487,2]
[314510833,1708380638624,-4886.73230413,0.00024487,2]
[314510862,1708380641626,-10588.10478192,0.00024487,2]
[314510909,1708380643437,-6070.05000021,0.00024487,2]
[314510912,1708380643451,-2519.62387117,0.00024487,2]
[314510941,1708380647674,-2347.86,0.00024477,3]
[314510942,1708380647683,-274.5467292,0.00024486,2]
[314510943,1708380647693,-181244.71057409,0.00024487,2]
[314510944,1708380647705,-356.29745081,0.00024586,2]
[314510945,1708380647714,-1479.06031691,0.00024597,2]
[314510946,1708380647723,-166.415618,0.00024658,2]
[314510947,1708380647733,-623.0,0.0002469,2]
[314510948,1708380647742,-267.15286439,0.00024697,3]
[314510949,1708380647751,-102882.75788949,0.00024697,2]
[314511145,1708381833797,-155.15360207,0.00022302,2]
[314511147,1708381833806,-1297.27899278,0.00022302,2]
[314511150,1708381833817,-247.561794,0.00022303,2]
[314511152,1708381833826,-300.0,0.00022482,2]
[314511154,1708381833835,-25.85512626,0.00022483,2]
[314511157,1708381833848,-4479.68727357,0.00022483,2]
[314511188,1708381838548,-1013.88146683,0.00022483,2]
[314511196,1708381841674,-590.51593427,0.00022483,2]
[314511197,1708381841734,-6267.55355621,0.00022483,2]
[314511198,1708381841757,-3606.27720025,0.00022483,2]
[314511199,1708381841773,-8916.22944261,0.00022483,2]
[314511200,1708381841788,-810.53496087,0.00022597,2]
[314511201,1708381841797,-236.3493359,0.00024287,2]
[314511202,1708381841806,-236.34933589,0.00024365,2]
[314511203,1708381841816,-3181.27,0.0002437,3]
[314511204,1708381841826,-2651.05,0.0002437,3]
[314511205,1708381841835,-2209.21,0.0002437,3]
[314511206,1708381841844,-48837.00692473,0.0002438,2]
[314511242,1708381843585,-8124.12709982,0.0002438,2]
[314511420,1708381847652,-5956.3949695,0.0002438,2]
[314511494,1708383031750,-263.1697026,0.00022174,2]
[314511499,1708383031785,-1034.10929018,0.00022174,2]
[314511501,1708383031794,-601.97785253,0.00022175,2]
[314511503,1708383031804,-212.31781007,0.00022276,2]
[314511506,1708383031813,-540.35664058,0.0002228,2]
[314511507,1708383031822,-247.561794,0.00023001,2]
[314511508,1708383031831,-9097.6824488,0.00023054,2]
[314511509,1708383031840,-4886.73230412,0.0002428,2]
[314511510,1708383031850,-152.26079786,0.00024331,2]
[314511511,1708383031859,-489.38,0.0002437,3]
[314511512,1708383031868,-244.69,0.0002437,3]
[314511513,1708383031878,-734.1,0.0002437,3]
[314511514,1708383031887,-174.02,0.0002437,3]
[314511515,1708383031896,-9694.17,0.0002437,3]
[314511516,1708383031905,-8078.48,0.0002437,3]
[314511517,1708383031914,-310.24819856,0.00024379,2]
[314511518,1708383031923,-23937.47100595,0.0002438,2]
[314511519,1708383031932,-55046.68650078,0.0002438,2]
[314511520,1708383031947,-8780.86547811,0.0002438,2]
[314511735,1708383045861,-27233.37018048,0.0002428,2]
[314511736,1708383045888,-83200.00116131,0.0002428,2]
[314511755,1708383949517,2500.028,0.00033,120]
[314511858,1708384231912,-273.59087979,0.00021034,2]
[314511860,1708384231921,-801.40645517,0.00021035,2]
[314511863,1708384231932,-495.87253761,0.00021035,2]
[314511864,1708384231941,-521.0,0.00021035,2]
[314511866,1708384231950,-3567.04749539,0.00021037,2]
[314511869,1708384231961,-1825.2202633,0.00021037,2]
[314511871,1708384231972,-1226.49982674,0.00021037,2]
[314511873,1708384231984,-1686.7154849,0.00021037,2]
[314511953,1708384239139,-16594.51692967,0.00021037,2]